fUSD/lending_fUSD_20260107
["ID","MTS","AMOUNT","RATE_DAILY","PERIOD"]
[400716263,1767790238705,-1115.94903288,0.00015799,5]
[400716264,1767790238714,-612.17704163,0.00015799,2]
[400716266,1767790238724,-500.0,0.00015799,2]
[400716268,1767790238733,-500.0,0.00015799,2]
[400716270,1767790238742,-500.0,0.00015799,2]
[400716272,1767790238752,-258.89763273,0.00015799,2]
[400716274,1767790238762,-500.0,0.00015799,2]
[400716276,1767790238772,-229.45511982,0.00015799,2]
[400716278,1767790238781,-500.0,0.00015799,2]
[400716280,1767790238791,-500.0,0.00015799,2]
[400716282,1767790238801,-224.78483841,0.00015799,2]
[400716284,1767790238811,-500.0,0.00015799,2]
[400716286,1767790238821,-500.0,0.00015799,2]
[400716288,1767790238830,-402.49307066,0.00015799,2]
[400716290,1767790238841,-500.0,0.00015799,2]
[400716293,1767790238851,-500.0,0.00015799,2]
[400716294,1767790238861,-521.47454512,0.00015799,2]
[400716297,1767790238871,-500.0,0.00015799,2]
[400716298,1767790238881,-186.24189689,0.00015799,2]
[400716300,1767790238891,-500.0,0.00015799,2]
[400716302,1767790238901,-500.0,0.00015799,2]
[400716304,1767790238911,-325.29685894,0.00015799,2]
[400716307,1767790238921,-503.51722906,0.00015799,2]
[400716308,1767790238931,-500.0,0.00015799,2]
[400716311,1767790238940,-500.0,0.00015799,2]
[400716313,1767790238956,-500.0,0.00015799,2]
[400716315,1767790238966,-500.0,0.00015799,2]
[400716317,1767790238976,-500.0,0.00015799,2]
[400716319,1767790238986,-500.0,0.00015799,2]
[400716320,1767790238995,-500.0,0.00015799,2]
[400716322,1767790239005,-221.0,0.00015799,2]
[400716325,1767790239016,-1667.84,0.00015799,2]
[400716327,1767790239026,-799777.77964116,0.000158,2]
[400716329,1767790239036,-500.0,0.000158,2]
[400716331,1767790239045,-151.0,0.00015887,2]
[400716333,1767790239055,-503.41430106,0.00015889,2]
[400716335,1767790239064,-500.0,0.00015889,2]
[400716337,1767790239074,-61558.7958524,0.0001589,2]
[400716339,1767790239083,-9999.99,0.0001589,2]
[400716341,1767790239093,-150.99,0.0001589,2]
[400716343,1767790239103,-13349.41,0.0001589,2]
[400716344,1767790239112,-9999.99,0.0001589,2]
[400716346,1767790239121,-9999.99,0.0001589,2]
[400716348,1767790239130,-9999.99,0.0001589,2]
[400716350,1767790239140,-1197.25,0.0001589,2]
[400716352,1767790239149,-999.99,0.0001589,2]
[400716354,1767790239158,-299.99,0.0001589,2]
[400716356,1767790239169,-150.99,0.0001589,2]
[400716358,1767790239178,-3174.75,0.0001589,2]
[400716360,1767790239187,-9999.99,0.0001589,2]
[400716362,1767790239196,-337.15,0.0001589,2]
[400716364,1767790239205,-17534.98,0.0001589,2]
[400716366,1767790239214,-9999.99,0.0001589,2]
[400716368,1767790239224,-1534.06,0.00015899,2]
[400716370,1767790239234,-500.0,0.00015899,2]
[400716372,1767790239243,-500.0,0.00015899,2]
[400716374,1767790239251,-500.0,0.00015899,2]
[400716376,1767790239260,-500.0,0.00015899,2]
[400716405,1767790239577,-500.0,0.00015899,2]
[400716410,1767790239617,-500.0,0.00015899,2]
[400716412,1767790239627,-500.0,0.00015899,2]
[400716414,1767790239637,-500.0,0.00015899,2]
[400716416,1767790239647,-500.0,0.00015899,2]
[400716418,1767790239656,-500.0,0.00015899,2]
[400716420,1767790239666,-500.0,0.00015899,2]
[400716422,1767790239676,-500.0,0.00015899,2]
[400716424,1767790239697,-500.0,0.00015899,2]
[400716426,1767790239718,-500.0,0.00015899,2]
[400716428,1767790239729,-500.0,0.00015899,2]
[400716430,1767790239740,-500.0,0.00015899,2]
[400716432,1767790239750,-500.0,0.00015899,2]
[400716434,1767790239761,-500.0,0.00015899,2]
[400716436,1767790239770,-500.0,0.00015899,2]
[400716438,1767790239781,-500.0,0.00015899,2]
[400716440,1767790239790,-500.0,0.00015899,2]
[400716442,1767790239802,-634.0912485,0.00015899,2]
[400716444,1767790239815,-500.0,0.00015899,2]
[400716446,1767790239826,-18458.91171343,0.00015944,2]
[400716448,1767790239838,-536.56778209,0.00016,2]
[400716450,1767790239848,-166.66,0.0001602,2]
[400716452,1767790239858,-20144.57828925,0.00016022,2]
[400716454,1767790239868,-1667.84,0.00016073,2]
[400716456,1767790239879,-500.0,0.00016074,2]
[400716458,1767790239891,-839.12560639,0.00016089,2]
[400716460,1767790239900,-500.0,0.0001609,2]
[400716462,1767790239911,-200.0,0.0001609,2]
[400716464,1767790239920,-151.0,0.0001609,2]
[400716466,1767790239931,-151.0,0.0001609,2]
[400716468,1767790239941,-151.0,0.0001609,2]
[400716470,1767790239952,-151.0,0.0001609,2]
[400716472,1767790239963,-151.0,0.0001609,2]
[400716474,1767790239974,-151.0,0.0001609,2]
[400716476,1767790239983,-151.0,0.0001609,2]
[400716477,1767790239994,-240.25800598,0.0001609,2]
[400716480,1767790240006,-500.0,0.00016099,2]
[400716482,1767790240016,-500.0,0.00016099,2]
[400716483,1767790240026,-500.0,0.00016099,2]
[400716486,1767790240038,-299.99999999,0.00016099,2]
[400716487,1767790240048,-500.0,0.00016099,2]
[400716490,1767790240059,-500.0,0.00016099,2]
[400716491,1767790240070,-500.0,0.00016099,2]
[400716493,1767790240080,-500.0,0.00016099,2]
[400716496,1767790240092,-500.0,0.00016099,2]
[400716498,1767790240103,-500.0,0.00016099,2]
[400716500,1767790240114,-500.0,0.00016099,2]
[400716501,1767790240126,-9247.15,0.00016116,2]
[400716503,1767790240136,-18458.91171343,0.00016189,2]
[400716505,1767790240146,-20144.57828925,0.00016257,2]
[400716507,1767790240155,-473.67601045,0.00016267,2]
[400716509,1767790240165,-500.0,0.00016276,2]
[400716512,1767790240174,-114587.39367527,0.00016277,2]
[400716513,1767790240184,-166.66,0.00016287,2]
[400716515,1767790240194,-166.66,0.00016337,2]
[400716517,1767790240203,-1667.84,0.00016347,2]
[400716519,1767790240213,-500.0,0.00016348,2]
[400716521,1767790240222,-151.0,0.00016379,2]
[400716523,1767790240231,-151.0,0.00016383,2]
[400716525,1767790240241,-151.0,0.00016384,2]
[400716527,1767790240249,-151.0,0.00016384,2]
[400716529,1767790240259,-839.12560639,0.00016391,2]
[400716531,1767790240268,-500.0,0.000164,2]
[400716533,1767790240277,-500.0,0.000164,2]
[400716535,1767790240286,-500.0,0.000164,2]
[400716537,1767790240296,-461.49248906,0.000164,2]
[400716539,1767790240305,-500.0,0.000164,2]
[400716541,1767790240313,-500.0,0.000164,2]
[400716543,1767790240322,-500.0,0.000164,2]
[400716545,1767790240332,-610.79386728,0.000164,2]
[400716547,1767790240342,-514.71165586,0.000164,2]
[400716549,1767790240351,-530.37627741,0.000164,2]
[400716551,1767790240360,-500.0,0.000164,2]
[400716553,1767790240370,-500.0,0.000164,2]
[400716555,1767790240380,-500.0,0.000164,2]
[400716557,1767790240389,-474.29981828,0.000164,2]
[400716559,1767790240398,-18458.91171343,0.00016433,2]
[400716561,1767790240412,-578.10542017,0.00016438,2]
[400716563,1767790240421,-578.10542017,0.00016438,2]
[400716564,1767790240430,-578.10542017,0.00016438,2]
[400716567,1767790240440,-578.10542017,0.00016438,2]
[400716568,1767790240449,-578.10542017,0.00016438,2]
[400716571,1767790240459,-578.10542017,0.00016438,2]
[400716573,1767790240468,-578.10542017,0.00016438,2]
[400716574,1767790240477,-578.10542017,0.00016438,2]
[400716576,1767790240485,-578.10542017,0.00016438,2]
[400716578,1767790240495,-578.10542017,0.00016438,2]
[400716580,1767790240504,-578.10542017,0.00016438,2]
[400716582,1767790240513,-578.10542017,0.00016438,2]
[400716584,1767790240523,-578.10542017,0.00016438,2]
[400716586,1767790240532,-578.10542017,0.00016438,2]
[400716588,1767790240541,-578.10542017,0.00016438,2]
[400716590,1767790240550,-578.10542017,0.00016438,2]
[400716592,1767790240560,-578.10542017,0.00016438,2]
[400716594,1767790240569,-578.10542017,0.00016438,2]
[400716596,1767790240579,-578.10542017,0.00016438,2]
[400716598,1767790240588,-578.10542017,0.00016438,2]
[400716600,1767790240597,-578.10542017,0.00016438,2]
[400716602,1767790240606,-578.10542017,0.00016438,2]
[400716604,1767790240616,-578.10542017,0.00016438,2]
[400716606,1767790240627,-578.10542017,0.00016438,2]
[400716608,1767790240636,-578.10542017,0.00016438,2]
[400716610,1767790240644,-578.10542017,0.00016438,2]
[400716612,1767790240653,-578.10542017,0.00016438,2]
[400716614,1767790240663,-578.10542017,0.00016438,2]
[400716616,1767790240672,-578.10542017,0.00016438,2]
[400716618,1767790240681,-578.10542017,0.00016438,2]
[400716620,1767790240691,-578.10542017,0.00016438,2]
[400716622,1767790240700,-578.10542017,0.00016438,2]
[400716624,1767790240709,-578.10542017,0.00016438,2]
[400716626,1767790240718,-578.10542017,0.00016438,2]
[400716628,1767790240728,-578.10542017,0.00016438,2]
[400716630,1767790240738,-578.10542017,0.00016438,2]
[400716632,1767790240747,-578.10542017,0.00016438,2]
[400716634,1767790240757,-578.10542017,0.00016438,2]
[400716636,1767790240767,-578.10542017,0.00016438,2]
[400716638,1767790240776,-578.10542017,0.00016438,2]
[400716640,1767790240785,-578.10542017,0.00016438,2]
[400716642,1767790240795,-578.10542017,0.00016438,2]
[400716644,1767790240804,-578.10542017,0.00016438,2]
[400716646,1767790240814,-578.10542017,0.00016438,2]
[400716648,1767790240823,-578.10542017,0.00016438,2]
[400716650,1767790240832,-578.10542017,0.00016438,2]
[400716652,1767790240841,-578.10542017,0.00016438,2]
[400716654,1767790240850,-578.10542017,0.00016438,2]
[400716656,1767790240860,-578.10542017,0.00016438,2]
[400716658,1767790240870,-578.10542017,0.00016438,2]
[400716660,1767790240879,-578.10542017,0.00016438,2]
[400716662,1767790240888,-578.10542017,0.00016438,2]
[400716664,1767790240901,-578.10542017,0.00016438,2]
[400716666,1767790240911,-578.10542017,0.00016438,2]
[400716668,1767790240921,-578.10542017,0.00016438,2]
[400716670,1767790240931,-578.10542017,0.00016438,2]
[400716672,1767790240940,-578.10542017,0.00016438,2]
[400716674,1767790240950,-578.10542017,0.00016438,2]
[400716676,1767790240960,-585.16212444,0.00016438,2]
[400716678,1767790240969,-585.16212444,0.00016438,2]
[400716680,1767790240979,-585.16212444,0.00016438,2]
[400716682,1767790240988,-585.16212444,0.00016438,2]
[400716684,1767790240998,-585.16212444,0.00016438,2]
[400716686,1767790241007,-585.16212444,0.00016438,2]
[400716688,1767790241017,-585.16212444,0.00016438,2]
[400716690,1767790241026,-585.16212444,0.00016438,2]
[400716692,1767790241035,-585.16212444,0.00016438,2]
[400716694,1767790241045,-585.16212444,0.00016438,2]
[400716696,1767790241054,-585.16212444,0.00016438,2]
[400716698,1767790241063,-585.16212444,0.00016438,2]
[400716700,1767790241073,-585.16212444,0.00016438,2]
[400716702,1767790241082,-585.16212444,0.00016438,2]
[400716704,1767790241092,-585.16212444,0.00016438,2]
[400716706,1767790241103,-585.16212444,0.00016438,2]
[400716708,1767790241112,-585.16212444,0.00016438,2]
[400716710,1767790241122,-585.16212444,0.00016438,2]
[400716712,1767790241131,-585.16212444,0.00016438,2]
[400716714,1767790241140,-585.16212444,0.00016438,2]
[400716716,1767790241149,-585.16212444,0.00016438,2]
[400716718,1767790241159,-585.16212444,0.00016438,2]
[400716720,1767790241168,-585.16212444,0.00016438,2]
[400716722,1767790241176,-585.16212444,0.00016438,2]
[400716724,1767790241185,-585.16212444,0.00016438,2]
[400716726,1767790241195,-585.16212444,0.00016438,2]
[400716728,1767790241204,-585.16212444,0.00016438,2]
[400716730,1767790241214,-585.16212444,0.00016438,2]
[400716732,1767790241223,-585.16212444,0.00016438,2]
[400716734,1767790241233,-585.16212444,0.00016438,2]
[400716736,1767790241242,-585.16212439,0.00016438,2]
[400716739,1767790241252,-11600.24,0.00016438,2]
[400716741,1767790241261,-20144.57828925,0.00016491,2]
[400716742,1767790241270,-1667.84,0.00016621,2]
[400716744,1767790241279,-500.0,0.00016622,2]
[400716746,1767790241289,-500.0,0.00016638,2]
[400716748,1767790241298,-200.0,0.00016638,2]
[400716751,1767790241308,-166.66,0.00016654,2]
[400716753,1767790241317,-18458.91171343,0.00016678,2]
[400716754,1767790241327,-839.12560639,0.00016693,2]
[400716756,1767790241340,-165.17,0.00016712,2]
[400716758,1767790241350,-20144.57828925,0.00016726,2]
[400716761,1767790241359,-166.66,0.00016825,2]
[400716762,1767790241370,-510.0,0.00016829,2]
[400716765,1767790241380,-417.23,0.00016845,2]
[400716767,1767790241389,-216.46468486,0.00016862,2]
[400716768,1767790241399,-1852.42,0.00016863,2]
[400716770,1767790241409,-1667.84,0.00016895,2]
[400716772,1767790241418,-500.0,0.00016896,2]
[400716774,1767790241427,-18458.91171343,0.00016922,2]
[400716776,1767790241436,-765.17,0.00016937,2]
[400716778,1767790241445,-20144.57828925,0.00016961,2]
[400716780,1767790241454,-151.0,0.00016983,2]
[400716782,1767790241464,-399835.26,0.00016986,2]
[400716784,1767790241473,-839.12560639,0.00016994,2]
[400716786,1767790241482,-250.0,0.00017,2]
[400716788,1767790241492,-18458.91171343,0.00017167,2]
[400716790,1767790241502,-420.0,0.00017169,2]
[400716792,1767790241511,-420.0,0.00017169,2]
[400716794,1767790241520,-1667.84,0.00017169,2]
[400716796,1767790241529,-506.85863405,0.0001717,2]
[400716798,1767790241539,-500.0,0.00017186,2]
[400716800,1767790241548,-20144.57828925,0.00017196,2]
[400716802,1767790241558,-710.28,0.00017207,2]
[400716805,1767790241568,-1680.0,0.00017256,2]
[400716807,1767790241577,-600.0,0.00017269,2]
[400716809,1767790241587,-600.0,0.00017269,2]
[400716811,1767790241596,-600.0,0.00017269,2]
[400716812,1767790241607,-600.0,0.00017269,2]
[400716813,1767790241616,-620.97403321,0.00017269,2]
[400716814,1767790241625,-250.0,0.00017269,2]
[400716815,1767790241635,-250.0,0.0001727,2]
[400716816,1767790241644,-5000.0,0.0001727,2]
[400716817,1767790241653,-5000.0,0.0001727,2]
[400716818,1767790241662,-1655.36790437,0.0001727,2]
[400716819,1767790241672,-300.0,0.0001727,2]
[400716820,1767790241682,-2500.0,0.0001727,2]
[400716821,1767790241691,-193.0,0.0001727,2]
[400716822,1767790241700,-152.10889041,0.0001727,2]
[400716823,1767790241710,-300.0,0.0001727,2]
[400716824,1767790241719,-195.0,0.0001727,2]
[400716825,1767790241730,-839.12560639,0.00017296,2]
[400716826,1767790241739,-166.66,0.00017362,2]
[400716827,1767790241748,-500.0,0.0001741,2]
[400716828,1767790241757,-18458.91171343,0.00017411,2]
[400716829,1767790241767,-20144.57828925,0.0001743,2]
[400716830,1767790241776,-1667.84,0.00017443,2]
[400716831,1767790241786,-575.39,0.00017591,2]
[400716832,1767790241796,-500.0,0.00017594,2]
[400716833,1767790241806,-165.31618738,0.00017594,2]
[400716834,1767790241815,-500.93985952,0.00017594,2]
[400716835,1767790241824,-500.0,0.00017594,2]
[400716836,1767790241834,-224.66209336,0.00017594,2]
[400716837,1767790241843,-538.59757642,0.00017594,2]
[400716839,1767790241852,-500.0,0.00017594,2]
[400716841,1767790241861,-169.74559645,0.00017594,2]
[400716843,1767790241871,-500.0,0.00017594,2]
[400716844,1767790241881,-552.50710843,0.00017594,2]
[400716845,1767790241890,-175.21486475,0.00017594,2]
[400716846,1767790241899,-500.0,0.00017594,2]
[400716847,1767790241910,-500.0,0.00017594,2]
[400716848,1767790241919,-500.0,0.00017594,2]
[400716849,1767790241928,-500.0,0.00017594,2]
[400716850,1767790241936,-500.0,0.00017594,2]
[400716851,1767790241945,-500.0,0.00017594,2]
[400716852,1767790241954,-500.0,0.00017594,2]
[400716853,1767790241963,-500.0,0.00017594,2]
[400716854,1767790241971,-500.0,0.00017594,2]
[400716855,1767790241980,-536.66734105,0.00017594,2]
[400716856,1767790241989,-500.0,0.00017594,2]
[400716857,1767790241998,-500.0,0.00017594,2]
[400716858,1767790242007,-500.0,0.00017594,2]
[400716859,1767790242016,-500.0,0.00017594,2]
[400716860,1767790242025,-500.0,0.00017594,2]
[400716861,1767790242034,-169.0457871,0.00017594,2]
[400716862,1767790242042,-166.24303816,0.00017594,2]
[400716863,1767790242051,-236.4594886,0.00017594,2]
[400716864,1767790242061,-500.0,0.00017594,2]
[400716865,1767790242070,-500.0,0.00017594,2]
[400716866,1767790242079,-485.97527636,0.00017594,2]
[400716867,1767790242088,-500.0,0.00017594,2]
[400716868,1767790242099,-500.0,0.00017594,2]
[400716869,1767790242108,-163.2920989,0.00017594,2]
[400716870,1767790242117,-500.0,0.00017594,2]
[400716871,1767790242127,-500.0,0.00017594,2]
[400716872,1767790242137,-500.0,0.00017594,2]
[400716873,1767790242146,-500.0,0.00017594,2]
[400716874,1767790242155,-162.472435,0.00017594,2]
[400716875,1767790242164,-500.0,0.00017594,2]
[400716876,1767790242173,-500.0,0.00017594,2]
[400716877,1767790242183,-438.43604995,0.00017594,2]
[400716878,1767790242193,-500.0,0.00017594,2]
[400716879,1767790242202,-839.12560639,0.00017598,2]
[400716881,1767790242211,-18458.91171343,0.00017656,2]
[400716882,1767790242221,-20144.57828925,0.00017665,2]
[400716883,1767790242231,-1667.84,0.00017717,2]
[400716884,1767790242240,-500.0,0.00017734,2]
[400716885,1767790242249,-166.66,0.000179,2]
[400716886,1767790242258,-10000.0,0.000179,2]
[400716887,1767790242268,-581.48,0.000179,2]
[400716888,1767790242277,-234.29,0.000179,2]
[400716889,1767790242288,-18458.91171343,0.000179,2]
[400716890,1767790242297,-465.68919574,0.000179,2]
[400716891,1767790242308,-2780.97907296,0.000179,2]
[400716892,1767790242318,-374.93987142,0.000179,2]
[400716893,1767790242327,-201.99613239,0.000179,3]
[400716894,1767790242342,-20144.57828925,0.000179,2]
[400716895,1767790242351,-470.13918125,0.000179,2]
[400716896,1767790242361,-500.0,0.00017918,2]
[400716897,1767790242372,-258.0,0.00017946,2]
[400716898,1767790242382,-500.0,0.00017982,2]
[400716899,1767790242392,-14422.3254508,0.00017983,2]
[400716900,1767790242402,-158.95761741,0.00017983,2]
[400716901,1767790242412,-487210.59229629,0.00017986,2]
[400716902,1767790242427,-49727.72533341,0.00017986,2]
[400716903,1767790242437,-13159.3971672,0.00017986,2]
[400716904,1767790242446,-473.67601045,0.0001799,2]
[400716905,1767790242456,-473.67601045,0.0001799,2]
[400716906,1767790242466,-1667.84,0.00017991,2]
[400716907,1767790242476,-300.0,0.00017999,2]
[400716908,1767790242486,-357.10757348,0.00017999,2]
[400716909,1767790242495,-300.0,0.00017999,2]
[400716910,1767790242505,-300.0,0.00017999,2]
[400716911,1767790242515,-666.0,0.00017999,2]
[400716912,1767790242525,-300.0,0.00017999,2]
[400716913,1767790242534,-666.0,0.00017999,2]
[400716914,1767790242544,-300.0,0.00017999,2]
[400716915,1767790242553,-666.0,0.00017999,2]
[400716916,1767790242562,-416.69028208,0.00018,3]
[400716917,1767790242571,-5691170.30458278,0.00018,2]
[400716924,1767790246275,-1.7e-07,0.00018,2]
[400716929,1767790247104,-839.12560639,0.000179,2]
[400716930,1767790247113,-89.96448157,0.00018,2]
[400716931,1767790247301,-391047.95717787,0.00018,2]
[400716932,1767790252211,-500.0,0.000164,2]
[400716933,1767790252220,-500.0,0.000164,2]
[400716934,1767790252230,-508.25738517,0.000164,2]
[400716935,1767790252239,-151.0,0.00016445,2]
[400716936,1767790252248,-151.0,0.00017749,2]
[400716937,1767790252258,-1536.36367858,0.00018,2]
[400716938,1767790252270,-1404.55695213,0.00018,2]
[400716939,1767790252281,-10943.0176479,0.00018,2]
[400716940,1767790252292,-988.49382925,0.00018,2]
[400716941,1767790252303,-4626.78912661,0.00018,2]
[400716942,1767790252315,-1236.613284,0.00018,2]
[400716943,1767790252326,-6916.8397409,0.00018,2]
[400716944,1767790252341,-453.8675,0.00018,2]
[400716945,1767790252352,-461.2805,0.00018,2]
[400716946,1767790252364,-268.16000001,0.00018,2]
[400716947,1767790252578,-220070.49406902,0.00018,2]
[400716948,1767790252588,-77519.40848721,0.00018,2]
[400716949,1767790297724,-1600.0,0.00015699,2]
[400716950,1767790350458,-15000.0,0.00015699,2]
[400716951,1767790370697,1321.76307314,0.000156,2]
[400716952,1767790384170,293.6793278,0.000156,2]
[400716953,1767790395646,-500.0,0.00015698,2]
[400716954,1767790395667,-567.62245942,0.00015698,2]
[400716955,1767790395691,-500.0,0.00015698,2]
[400716956,1767790395715,-500.0,0.00015698,2]
[400716957,1767790395738,-500.0,0.00015698,2]
[400716958,1767790395761,-500.0,0.00015698,2]
[400716959,1767790395784,-500.0,0.00015698,2]
[400716960,1767790395808,-597.7246015,0.00015698,2]
[400716961,1767790395831,-182.63363081,0.00015698,2]
[400716962,1767790395854,-234.17022013,0.00015698,2]
[400716963,1767790395884,-25417.84908814,0.00015699,2]
[400716971,1767790448434,1285.44192249,0.000156,2]
[400716972,1767790459541,180.08,8.345e-05,2]
[400716973,1767790459783,180.08,8.784e-05,2]
[400716974,1767790459922,180.08,9.224e-05,2]
[400716975,1767790460124,180.08,9.663e-05,2]
[400716976,1767790460204,180.08,0.00010102,2]
[400716977,1767790460303,180.08,0.00010541,2]
[400716978,1767790461028,180.08,0.0001098,2]
[400716979,1767790461154,180.08,0.0001142,2]
[400716980,1767790461196,180.08,0.00011859,2]
[400716981,1767790461313,180.08,0.00012298,2]
[400716982,1767790461456,180.08,0.00012737,2]
[400716983,1767790461929,180.08,0.00013176,2]
[400716984,1767790462028,180.08,0.00013616,2]
[400716985,1767790462141,180.08,0.00014055,2]
[400716986,1767790462265,180.08,0.00014494,2]
[400716987,1767790462460,180.08,0.00014933,2]
[400716988,1767790462658,180.08,0.00015372,2]
[400716989,1767790485697,171.29,0.0001313,2]
[400716990,1767790494210,1942.10358819,0.000156,2]
[400716991,1767790506932,-241.46184811,0.00015698,2]
[400716992,1767790506956,-300.0,0.00015698,2]
[400716993,1767790506981,-300.0,0.00015698,2]
[400716994,1767790507009,-300.0,0.00015698,2]
[400716995,1767790507048,-1200.0,0.00015698,2]
[400716996,1767790507088,-957982.15091186,0.00015699,2]
[400716997,1767790507113,-51041.4323,0.000157,2]
[400716998,1767790507147,-2106.5871,0.000157,2]
[400716999,1767790507197,-500.0,0.00015799,2]
[400717000,1767790507240,-239.30650294,0.00015799,2]
[400717001,1767790507280,-500.0,0.00015799,2]
[400717002,1767790507317,-500.0,0.00015799,2]
[400717003,1767790507369,-500.0,0.00015799,2]
[400717004,1767790507399,-500.0,0.00015799,2]
[400717005,1767790507433,-500.0,0.00015799,2]
[400717006,1767790507483,-180.08,0.00015812,2]
[400717007,1767790544589,3539.81448932,0.00015599,2]
[400717008,1767790544613,1576.51241068,0.00015599,2]
[400717009,1767790558923,8423.49758932,0.00015599,2]
[400717010,1767790558951,10000.01,0.00015599,2]
[400717011,1767790558978,10000.01,0.00015599,2]
[400717012,1767790559006,10000.01,0.00015599,2]
[400717013,1767790559033,10000.01,0.00015599,2]
[400717014,1767790559061,10000.01,0.00015599,2]
[400717015,1767790559089,10000.01,0.00015599,2]
[400717016,1767790559116,10000.01,0.00015599,2]
[400717017,1767790559144,10000.01,0.00015599,2]
[400717018,1767790559802,-1062.58899983,0.00015599,2]
[400717019,1767790563597,357.27245158,0.00032584,120]
[400717020,1767790574727,-300.0,0.00015598,2]
[400717021,1767790574758,-250.0,0.00015598,2]
[400717022,1767790595201,-500.0,0.00015598,2]
[400717023,1767790595239,-169.02329368,0.00015598,2]
[400717024,1767790595277,-163.91915409,0.00015598,2]
[400717025,1767790595311,-247.3357216,0.00015598,2]
[400717026,1767790595343,-1115.94903288,0.00015598,5]
[400717027,1767790597583,-500.0,0.00015599,2]
[400717028,1767790612364,-344.19162239,0.00015598,2]
[400717029,1767790613114,-7524.21421478,0.00015599,2]
[400717030,1767790613392,-500.0,0.00015599,2]
[400717031,1767790625833,-300.0,0.00015598,2]
[400717032,1767790625862,-300.0,0.00015598,2]
[400717033,1767790626339,-8800.01,0.00015599,2]
[400717034,1767790626630,-10000.01,0.00015599,2]
[400717035,1767790626830,-10000.01,0.00015599,2]
[400717036,1767790626962,-10000.01,0.00015599,2]
[400717037,1767790627224,-10000.01,0.00015599,2]
[400717038,1767790627255,-403.8,0.00015599,2]
[400717039,1767790627423,-10000.01,0.00015599,2]
[400717040,1767790627564,-10000.01,0.00015599,2]
[400717041,1767790627689,-10000.01,0.00015599,2]
[400717042,1767790627772,-10000.01,0.00015599,2]
[400717043,1767790656888,-500.0342033,0.00015599,2]
[400717044,1767790661370,-500.0,0.00015599,2]
[400717045,1767790729315,1401.78757009,0.00015499,2]
[400717046,1767790741715,300.0,0.00015598,2]
[400717047,1767790801527,300.0,0.00015598,2]
[400717048,1767790801645,1200.0,0.00015598,2]
[400717049,1767790801908,300.0,0.00015598,2]
[400717050,1767790802015,300.0,0.00015598,2]
[400717051,1767790808081,500.0,0.00015598,2]
[400717052,1767790816097,5698.22242991,0.00015589,2]
[400717053,1767790816120,4166.60757009,0.00015589,2]
[400717054,1767790816461,5833.40242991,0.00015589,2]
[400717055,1767790816484,4031.42757009,0.00015589,2]
[400717056,1767790837705,500.0,0.00015598,2]
[400717057,1767790837924,500.0,0.00015598,2]
[400717058,1767790867278,500.0,0.00015598,2]
[400717059,1767790867530,513.27916728,0.00015598,2]
[400717060,1767790881105,4886.95886985,0.00015499,2]
[400717061,1767790883924,500.0,0.00015598,2]
[400717062,1767790884175,500.0,0.00015598,2]
[400717063,1767790884515,531.52006841,0.00015598,2]
[400717064,1767790894024,1568.25189446,0.00015287,2]
[400717065,1767790894048,1569.44510554,0.00015287,2]
[400717066,1767790894139,196.625,0.00015287,2]
[400717067,1767790896530,1322.37052168,0.00015499,2]
[400717068,1767790902164,500.0,0.00015598,2]
[400717069,1767790902440,500.0,0.00015598,2]
[400717070,1767790902660,500.0,0.00015598,2]
[400717071,1767790905382,500.0,0.00015598,2]